[Event "EYCC Girls U10 2021"]
[Site "Tornelo"]
[Date "2021.10.15"]
[Round "2.3"]
[White "Asachenko, Ksenia"]
[Black "Zeybek, Kayla Nil"]
[Result "1-0"]
[ECO "C06"]
[WhiteElo "1382"]
[BlackElo "1221"]
[Annotator "NA"]
[PlyCount "63"]
[EventDate "2021.10.15"]
[EventType "swiss"]
[EventCountry "NET"]
[SourceTitle "playchess.com"]
[Source "ChessBase"]
[SourceQuality "1"]
[TimeControl "5400+30"]

1. e4 {[%emt 0:00:30]} e6 {[%emt 0:00:34]} 2. d4 {[%emt 0:00:08]} d5 {[%emt 0:00:04]} 3. Nd2 {[%emt 0:00:10]} Nf6 {[%emt 0:00:08]} 4. e5 {[%emt 0:00:11]} Nfd7 {[%emt 0:00:05]} 5. Bd3 {[%emt 0:00:20]} c5 {[%emt 0:00:12]} 6. c3 {[%emt 0:00:10]} Nc6 {[%emt 0:00:06]} 7. Ngf3 {[%emt 0:00:10]} Qb6 {[%emt 0:01:02]} 8. O-O {[%emt 0:00:55]} cxd4 {[%emt 0:00:09]} 9. cxd4 {[%emt 0:00:11]} Nxd4 {[%emt 0:01:16]} 10. Nxd4 {[%emt 0:01:25]} Qxd4 {[%emt 0:03:34]} 11. Nf3 {[%emt 0:08:57]} Qb6 {[%emt 0:04:43]} 12. Be3 {[%emt 0:09:36]} Qd8 {[%emt 0:07:15]} 13. Qa4 {[%emt 0:03:37]} Be7 {[%emt 0:02:41]} 14. Qg4 {[%emt 0:02:13]} g6 {[%emt 0:20:19]} 15. Bh6 {[%emt 0:04:59]} f5 {[%emt 0:01:41]} 16. exf6 {[%emt 0:04:23]} Nxf6 {[%emt 0:00:10]} 17. Bxg6+ {[%emt 0:15:41]} hxg6 {[%emt 0:00:10]} 18. Qxg6+ {[%emt 0:01:17]} Kd7 {[%emt 0:00:13]} 19. Ne5+ {[%emt 0:03:24]} Kc7 {[%emt 0:00:16]} 20. Qc2+ {[%emt 0:07:16]} Kb6 {[%emt 0:04:41]} 21. Nf7 {[%emt 0:05:35]} Qe8 {[%emt 0:07:00]} 22. Be3+ {[%emt 0:01:12]} Kb5 {[%emt 0:09:07]} 23. a4+ {[%emt 0:01:01]} Ka5 {[%emt 0:04:08]} 24. Bd2+ {[%emt 0:01:05]} Kb6 {[%emt 0:01:57]} 25. Be3+ {[%emt 0:01:29]} Ka5 {[%emt 0:01:09]} 26. Nxh8 {[%emt 0:02:42]} Qxh8 {[%emt 0:00:51]} 27. Qc7+ {[%emt 0:05:27]} b6 {[%emt 0:02:20]} 28. Qxe7 {[%emt 0:01:20]} Ng4 {[%emt 0:12:31]} 29. b4+ {[%emt 0:00:14]} Ka6 {[%emt 0:00:39]} 30. b5+ {[%emt 0:00:04]} Ka5 {[%emt 0:00:09]} 31. Bd2+ {[%emt 0:00:05]} Qc3 {[%emt 0:00:17]} 32. Bxc3# {[%emt 0:00:04]} 1-0

[Event "EYCC Girls U10 2021"]
[Site "Tornelo"]
[Date "2021.10.15"]
[Round "2.4"]
[White "Huseynova, Dinara"]
[Black "Lajdamik, Kinga"]
[Result "0-1"]
[ECO "B13"]
[WhiteElo "1210"]
[BlackElo "1367"]
[Annotator "NA"]
[PlyCount "90"]
[EventDate "2021.10.15"]
[EventType "swiss"]
[EventCountry "NET"]
[SourceTitle "playchess.com"]
[Source "ChessBase"]
[SourceQuality "1"]
[TimeControl "5400+30"]

1. e4 {[%emt 0:00:30]} c6 {[%emt 0:00:40]} 2. d4 {[%emt 0:00:04]} d5 {[%emt 0:00:07]} 3. exd5 {[%emt 0:00:02]} cxd5 {[%emt 0:00:07]} 4. Bd3 {[%emt 0:00:02]} Nc6 {[%emt 0:00:10]} 5. c3 {[%emt 0:00:03]} Qc7 {[%emt 0:00:35]} 6. h3 {[%emt 0:00:23]} Bd7 {[%emt 0:03:18]} 7. Nf3 {[%emt 0:00:03]} Nf6 {[%emt 0:00:22]} 8. O-O {[%emt 0:01:17]} e6 {[%emt 0:00:58]} 9. Bg5 {[%emt 0:01:43]} Be7 {[%emt 0:04:17]} 10. Qc2 {[%emt 0:04:01]} h6 {[%emt 0:00:14]} 11. Bh4 {[%emt 0:00:13]} Rc8 {[%emt 0:04:10]} 12. Bg3 {[%emt 0:00:30]} Bd6 {[%emt 0:02:35]} 13. Bxd6 {[%emt 0:00:28]} Qxd6 {[%emt 0:00:30]} 14. Bb5 {[%emt 0:00:05]} a6 {[%emt 0:02:29]} 15. Bxc6 {[%emt 0:00:04]} Bxc6 {[%emt 0:02:43]} 16. Ne5 {[%emt 0:02:16]} Bb5 {[%emt 0:03:06]} 17. Re1 {[%emt 0:00:24]} O-O {[%emt 0:00:15]} 18. Na3 {[%emt 0:01:34]} Be8 {[%emt 0:03:47]} 19. f4 {[%emt 0:00:07]} b5 {[%emt 0:00:49]} 20. Qd2 {[%emt 0:02:25]} Ne4 {[%emt 0:02:39]} 21. Qd3 {[%emt 0:00:54]} f6 {[%emt 0:02:13]} 22. Ng4 {[%emt 0:03:31]} Qxf4 {[%emt 0:03:10]} 23. Rf1 {[%emt 0:02:34]} Qd6 {[%emt 0:08:35]} 24. Nc2 {[%emt 0:05:01]} b4 {[%emt 0:08:57]} 25. c4 {[%emt 0:06:01]} Rxc4 {[%emt 0:01:50]} 26. Nge3 {[%emt 0:00:56]} Rc7 {[%emt 0:02:55]} 27. Qb3 {[%emt 0:00:38]} Nd2 {[%emt 0:03:29]} 28. Qxb4 {[%emt 0:00:04]} Qxb4 {[%emt 0:00:19]} 29. Nxb4 {[%emt 0:00:02]} Nxf1 {[%emt 0:00:18]} 30. Rxf1 {[%emt 0:00:08]} Bb5 {[%emt 0:00:45]} 31. Re1 {[%emt 0:00:14]} a5 {[%emt 0:02:53]} 32. Nbc2 {[%emt 0:00:04]} Rfc8 {[%emt 0:01:32]} 33. Kh2 {[%emt 0:01:06]} Rxc2 {[%emt 0:07:06]} 34. Nxc2 {[%emt 0:00:05]} Rxc2 {[%emt 0:00:10]} 35. Rxe6 {[%emt 0:00:23]} Bf1 {[%emt 0:05:00]} 36. Re8+ {[%emt 0:01:07]} Kh7 {[%emt 0:00:35]} 37. Ra8 {[%emt 0:00:03]} Rxg2+ {[%emt 0:01:46]} 38. Kh1 {[%emt 0:00:08]} Rxb2 {[%emt 0:00:12]} 39. Rxa5 {[%emt 0:00:04]} Bxh3 {[%emt 0:00:18]} 40. a4 {[%emt 0:00:07]} Ra2 {[%emt 0:00:55]} 41. Ra8 {[%emt 0:00:07]} Bg2+ {[%emt 0:00:28]} 42. Kg1 {[%emt 0:00:03]} Be4 {[%emt 0:00:10]} 43. a5 {[%emt 0:00:05]} h5 {[%emt 0:00:54]} 44. a6 {[%emt 0:00:42]} h4 {[%emt 0:00:28]} 45. Rb8 {[%emt 0:00:17]} h3 {[%emt 0:00:38]} 0-1

[Event "EYCC Girls U10 2021"]
[Site "Tornelo"]
[Date "2021.10.15"]
[Round "2.5"]
[White "Sokolova, Regina"]
[Black "Radu, Antonia"]
[Result "1-0"]
[ECO "B55"]
[WhiteElo "1364"]
[BlackElo "1204"]
[Annotator "NA"]
[PlyCount "121"]
[EventDate "2021.10.15"]
[EventType "swiss"]
[EventCountry "NET"]
[SourceTitle "playchess.com"]
[Source "ChessBase"]
[SourceQuality "1"]
[TimeControl "5400+30"]

1. e4 {[%emt 0:00:30]} c5 {[%emt 0:00:37]} 2. Nf3 {[%emt 0:00:04]} d6 {[%emt 0:00:07]} 3. d4 {[%emt 0:00:04]} cxd4 {[%emt 0:00:07]} 4. Nxd4 {[%emt 0:00:02]} Nf6 {[%emt 0:00:08]} 5. f3 {[%emt 0:00:03]} a6 {[%emt 0:00:14]} 6. c4 {[%emt 0:00:15]} g6 {[%emt 0:00:15]} 7. Nc3 {[%emt 0:02:17]} Nc6 {[%emt 0:00:19]} 8. Be3 {[%emt 0:08:03]} Bg7 {[%emt 0:00:25]} 9. Nb3 {[%emt 0:02:41]} O-O {[%emt 0:00:37]} 10. Be2 {[%emt 0:00:41]} Bd7 {[%emt 0:00:35]} 11. O-O {[%emt 0:00:43]} Rb8 {[%emt 0:05:01]} 12. Qd2 {[%emt 0:11:14]} Ne5 {[%emt 0:02:40]} 13. Bd4 {[%emt 0:08:34]} Nc6 {[%emt 0:00:55]} 14. Bf2 {[%emt 0:01:41]} Ne5 {[%emt 0:03:56]} 15. Nd4 {[%emt 0:02:39]} Bc6 {[%emt 0:00:40]} 16. Rfd1 {[%emt 0:04:20]} Qc7 {[%emt 0:00:34]} 17. Rac1 {[%emt 0:01:16]} Rfc8 {[%emt 0:01:03]} 18. Nd5 {[%emt 0:00:36]} Bxd5 {[%emt 0:00:20]} 19. cxd5 {[%emt 0:00:53]} Qd7 {[%emt 0:00:15]} 20. b3 {[%emt 0:01:56]} b5 {[%emt 0:00:24]} 21. Bg3 {[%emt 0:03:58]} Qa7 {[%emt 0:01:46]} 22. Kh1 {[%emt 0:01:21]} Rxc1 {[%emt 0:09:22]} 23. Qxc1 {[%emt 0:06:51]} Re8 {[%emt 0:00:39]} 24. Bxe5 {[%emt 0:00:41]} dxe5 {[%emt 0:00:07]} 25. Nc6 {[%emt 0:00:04]} Qc7 {[%emt 0:00:28]} 26. Qa3 {[%emt 0:01:22]} Qb7 {[%emt 0:04:35]} 27. Nxe5 {[%emt 0:08:52]} h5 {[%emt 0:01:04]} 28. Nc6 {[%emt 0:00:43]} Nd7 {[%emt 0:00:45]} 29. Nxe7+ {[%emt 0:01:40]} Kh8 {[%emt 0:02:30]} 30. Nc6 {[%emt 0:01:47]} Ne5 {[%emt 0:00:31]} 31. Nxe5 {[%emt 0:02:19]} Bxe5 {[%emt 0:00:10]} 32. Qc1 {[%emt 0:00:30]} Rc8 {[%emt 0:00:28]} 33. Qh6+ {[%emt 0:00:50]} Kg8 {[%emt 0:00:06]} 34. Qd2 {[%emt 0:01:28]} Kg7 {[%emt 0:00:16]} 35. f4 {[%emt 0:00:32]} Bc3 {[%emt 0:00:08]} 36. Qd3 {[%emt 0:00:26]} f6 {[%emt 0:00:14]} 37. Qg3 {[%emt 0:00:28]} Kh6 {[%emt 0:00:54]} 38. e5 {[%emt 0:01:11]} fxe5 {[%emt 0:00:28]} 39. fxe5 {[%emt 0:00:32]} Qe7 {[%emt 0:00:13]} 40. e6 {[%emt 0:01:20]} Bf6 {[%emt 0:01:48]} 41. Bd3 {[%emt 0:01:28]} g5 {[%emt 0:00:24]} 42. Qf3 {[%emt 0:01:51]} Qg7 {[%emt 0:01:02]} 43. d6 {[%emt 0:00:55]} Rc3 {[%emt 0:00:38]} 44. Qe4 {[%emt 0:00:45]} Bd8 {[%emt 0:02:28]} 45. e7 {[%emt 0:00:27]} Bxe7 {[%emt 0:00:13]} 46. dxe7 {[%emt 0:00:07]} Rxd3 {[%emt 0:00:15]} 47. Qxd3 {[%emt 0:00:12]} Qxe7 {[%emt 0:00:05]} 48. Qd6+ {[%emt 0:00:02]} Qxd6 {[%emt 0:00:05]} 49. Rxd6+ {[%emt 0:00:03]} Kg7 {[%emt 0:00:04]} 50. Rxa6 {[%emt 0:00:01]} g4 {[%emt 0:00:04]} 51. Rb6 {[%emt 0:00:04]} h4 {[%emt 0:00:05]} 52. Rxb5 {[%emt 0:00:04]} Kg6 {[%emt 0:00:05]} 53. a4 {[%emt 0:00:05]} g3 {[%emt 0:00:05]} 54. hxg3 {[%emt 0:00:02]} hxg3 {[%emt 0:00:03]} 55. a5 {[%emt 0:00:01]} Kf6 {[%emt 0:00:05]} 56. a6 {[%emt 0:00:02]} Ke6 {[%emt 0:00:04]} 57. a7 {[%emt 0:00:03]} Kd6 {[%emt 0:00:06]} 58. a8=Q {[%emt 0:00:04]} Kc7 {[%emt 0:00:06]} 59. Qa6 {[%emt 0:00:24]} Kd7 {[%emt 0:00:12]} 60. Rb7+ {[%emt 0:00:02]} Kc8 {[%emt 0:00:03]} 61. Qa8# {[%emt 0:00:02]} 1-0

[Event "EYCC Girls U10 2021"]
[Site "Tornelo"]
[Date "2021.10.15"]
[Round "2.6"]
[White "Valiyeva, Asnad"]
[Black "Sunea, Sara Maria"]
[Result "1/2-1/2"]
[ECO "A45"]
[WhiteElo "1173"]
[BlackElo "1342"]
[Annotator "NA"]
[PlyCount "84"]
[EventDate "2021.10.15"]
[EventType "swiss"]
[EventCountry "NET"]
[SourceTitle "playchess.com"]
[Source "ChessBase"]
[SourceQuality "1"]
[TimeControl "5400+30"]

1. d4 {[%emt 0:03:51]} Nf6 {[%emt 0:00:47]} 2. Bf4 {[%emt 0:00:09]} c5 {[%emt 0:00:23]} 3. e3 {[%emt 0:00:27]} Nd5 {[%emt 0:06:57]} 4. Bxb8 {[%emt 0:03:39]} Rxb8 {[%emt 0:00:38]} 5. c3 {[%emt 0:00:52]} e6 {[%emt 0:01:51]} 6. Nd2 {[%emt 0:00:10]} b6 {[%emt 0:01:49]} 7. Ngf3 {[%emt 0:01:52]} Bb7 {[%emt 0:02:35]} 8. Be2 {[%emt 0:00:49]} Be7 {[%emt 0:01:34]} 9. O-O {[%emt 0:02:28]} O-O {[%emt 0:02:19]} 10. h3 {[%emt 0:02:26]} Qc7 {[%emt 0:05:15]} 11. Rc1 {[%emt 0:04:07]} Rbc8 {[%emt 0:05:04]} 12. a3 {[%emt 0:03:36]} Nf6 {[%emt 0:04:05]} 13. Bd3 {[%emt 0:04:01]} Qc6 {[%emt 0:10:24]} 14. Re1 {[%emt 0:09:50]} Qc7 {[%emt 0:09:23]} 15. Qc2 {[%emt 0:01:52]} cxd4 {[%emt 0:05:14]} 16. exd4 {[%emt 0:02:59]} Qf4 {[%emt 0:07:05]} 17. Ne4 {[%emt 0:02:58]} Nxe4 {[%emt 0:02:05]} 18. Bxe4 {[%emt 0:00:19]} Bxe4 {[%emt 0:00:49]} 19. Rxe4 {[%emt 0:00:08]} Qf5 {[%emt 0:03:41]} 20. Qe2 {[%emt 0:00:16]} d5 {[%emt 0:04:09]} 21. Re3 {[%emt 0:00:42]} Bg5 {[%emt 0:01:03]} 22. Nxg5 {[%emt 0:00:09]} Qxg5 {[%emt 0:00:17]} 23. Re1 {[%emt 0:00:32]} Kh8 {[%emt 0:02:33]} 24. Rg3 {[%emt 0:00:14]} Qh4 {[%emt 0:02:34]} 25. Qf3 {[%emt 0:01:23]} Rce8 {[%emt 0:02:09]} 26. Re3 {[%emt 0:02:16]} a6 {[%emt 0:03:47]} 27. Qe2 {[%emt 0:00:18]} b5 {[%emt 0:00:12]} 28. Re5 {[%emt 0:00:17]} h6 {[%emt 0:02:02]} 29. Rge3 {[%emt 0:01:05]} Rd8 {[%emt 0:01:15]} 30. Kh2 {[%emt 0:00:34]} Qf4+ {[%emt 0:02:29]} 31. g3 {[%emt 0:00:18]} Qf6 {[%emt 0:00:20]} 32. f4 {[%emt 0:00:06]} Kg8 {[%emt 0:02:09]} 33. f5 {[%emt 0:00:35]} exf5 {[%emt 0:00:18]} 34. Qf3 {[%emt 0:00:07]} f4 {[%emt 0:02:01]} 35. gxf4 {[%emt 0:01:39]} Qc6 {[%emt 0:00:33]} 36. Re2 {[%emt 0:01:40]} Rd6 {[%emt 0:00:51]} 37. Rg2 {[%emt 0:00:28]} Rfd8 {[%emt 0:00:27]} 38. Rge2 {[%emt 0:00:57]} Rg6 {[%emt 0:00:42]} 39. R2e3 {[%emt 0:02:40]} Qc4 {[%emt 0:00:34]} 40. Re2 {[%emt 0:02:11]} Qc6 {[%emt 0:00:21]} 41. Rf5 {[%emt 0:03:28]} Rf6 {[%emt 0:00:49]} 42. Rfe5 {[%emt 0:01:06]} Rg6 {[%emt 0:00:18]} 1/2-1/2

[Event "EYCC Girls U10 2021"]
[Site "Tornelo"]
[Date "2021.10.15"]
[Round "2.7"]
[White "Siskou, Evangelia"]
[Black "Miroshnik, Irina"]
[Result "0-1"]
[ECO "B27"]
[WhiteElo "1341"]
[BlackElo "1147"]
[Annotator "NA"]
[PlyCount "148"]
[EventDate "2021.10.15"]
[EventType "swiss"]
[EventCountry "NET"]
[SourceTitle "playchess.com"]
[Source "ChessBase"]
[SourceQuality "1"]
[TimeControl "5400+30"]

1. e4 {[%emt 0:00:30]} c5 {[%emt 0:00:40]} 2. Nf3 {[%emt 0:00:22]} g6 {[%emt 0:00:06]} 3. d4 {[%emt 0:00:22]} cxd4 {[%emt 0:00:06]} 4. Qxd4 {[%emt 0:00:49]} Nf6 {[%emt 0:00:07]} 5. Nc3 {[%emt 0:00:33]} Nc6 {[%emt 0:00:08]} 6. Qa4 {[%emt 0:00:40]} d6 {[%emt 0:00:37]} 7. e5 {[%emt 0:00:48]} Ng4 {[%emt 0:08:15]} 8. exd6 {[%emt 0:08:09]} Qxd6 {[%emt 0:00:22]} 9. Bf4 {[%emt 0:00:38]} Qb4 {[%emt 0:09:34]} 10. Bb5 {[%emt 0:08:57]} Qxa4 {[%emt 0:04:06]} 11. Bxa4 {[%emt 0:01:48]} a6 {[%emt 0:05:05]} 12. Nd5 {[%emt 0:01:59]} Ra7 {[%emt 0:12:48]} 13. Bb8 {[%emt 0:02:55]} b5 {[%emt 0:02:55]} 14. Bxa7 {[%emt 0:00:12]} Nxa7 {[%emt 0:00:56]} 15. Bb3 {[%emt 0:03:01]} Bb7 {[%emt 0:01:22]} 16. Rd1 {[%emt 0:06:23]} Bxd5 {[%emt 0:00:39]} 17. Bxd5 {[%emt 0:00:49]} e6 {[%emt 0:00:21]} 18. Bb7 {[%emt 0:01:02]} Bc5 {[%emt 0:00:30]} 19. Rf1 {[%emt 0:01:23]} O-O {[%emt 0:03:07]} 20. h3 {[%emt 0:01:43]} Nf6 {[%emt 0:00:48]} 21. Bxa6 {[%emt 0:01:09]} Rb8 {[%emt 0:00:32]} 22. a4 {[%emt 0:04:29]} bxa4 {[%emt 0:01:24]} 23. Rb1 {[%emt 0:07:53]} a3 {[%emt 0:03:24]} 24. Ke2 {[%emt 0:03:46]} axb2 {[%emt 0:00:16]} 25. Ne5 {[%emt 0:01:20]} Bd4 {[%emt 0:01:00]} 26. f4 {[%emt 0:02:35]} Ne4 {[%emt 0:04:55]} 27. Kd3 {[%emt 0:00:35]} Bxe5 {[%emt 0:06:01]} 28. Kxe4 {[%emt 0:00:55]} Bg7 {[%emt 0:00:30]} 29. Kd3 {[%emt 0:01:06]} Nc6 {[%emt 0:00:19]} 30. c3 {[%emt 0:00:37]} Rb6 {[%emt 0:00:40]} 31. Bc4 {[%emt 0:00:33]} Na5 {[%emt 0:00:09]} 32. Rf2 {[%emt 0:01:16]} Rd6+ {[%emt 0:00:42]} 33. Kc2 {[%emt 0:02:33]} Nxc4 {[%emt 0:00:08]} 34. Re1 {[%emt 0:00:45]} Rb6 {[%emt 0:02:00]} 35. Kd3 {[%emt 0:03:10]} Na3 {[%emt 0:00:34]} 36. c4 {[%emt 0:03:23]} b1=Q+ {[%emt 0:00:16]} 37. Rxb1 {[%emt 0:00:10]} Nxb1 {[%emt 0:00:12]} 38. c5 {[%emt 0:00:28]} Rb8 {[%emt 0:00:11]} 39. c6 {[%emt 0:00:09]} Na3 {[%emt 0:00:05]} 40. Ra2 {[%emt 0:01:01]} Bf8 {[%emt 0:00:47]} 41. Kd4 {[%emt 0:00:52]} Rc8 {[%emt 0:00:06]} 42. Re2 {[%emt 0:00:53]} Rxc6 {[%emt 0:00:13]} 43. g4 {[%emt 0:00:22]} Nc2+ {[%emt 0:01:05]} 44. Ke4 {[%emt 0:00:18]} Bg7 {[%emt 0:00:07]} 45. h4 {[%emt 0:00:37]} Nd4 {[%emt 0:01:15]} 46. Ra2 {[%emt 0:00:41]} f5+ {[%emt 0:01:59]} 47. gxf5 {[%emt 0:00:18]} Nxf5 {[%emt 0:00:29]} 48. Ra8+ {[%emt 0:00:50]} Kf7 {[%emt 0:00:08]} 49. Ra7+ {[%emt 0:00:09]} Kf6 {[%emt 0:00:08]} 50. Ra3 {[%emt 0:00:35]} Rc4+ {[%emt 0:00:45]} 51. Kf3 {[%emt 0:00:34]} Nxh4+ {[%emt 0:00:08]} 52. Kg4 {[%emt 0:00:21]} Nf5 {[%emt 0:00:09]} 53. Kf3 {[%emt 0:01:25]} h5 {[%emt 0:00:36]} 54. Rd3 {[%emt 0:00:46]} h4 {[%emt 0:00:15]} 55. Kg4 {[%emt 0:00:12]} h3 {[%emt 0:00:20]} 56. Rxh3 {[%emt 0:00:20]} e5 {[%emt 0:00:15]} 57. Rf3 {[%emt 0:00:58]} Rxf4+ {[%emt 0:00:32]} 58. Rxf4 {[%emt 0:00:13]} exf4 {[%emt 0:00:06]} 59. Kxf4 {[%emt 0:00:07]} g5+ {[%emt 0:00:14]} 60. Kg4 {[%emt 0:00:05]} Ne3+ {[%emt 0:00:05]} 61. Kf3 {[%emt 0:00:10]} Nc2 {[%emt 0:00:25]} 62. Kg4 {[%emt 0:00:08]} Kg6 {[%emt 0:00:05]} 63. Kg3 {[%emt 0:00:10]} Kf5 {[%emt 0:00:10]} 64. Kf3 {[%emt 0:00:25]} g4+ {[%emt 0:00:10]} 65. Kg3 {[%emt 0:00:07]} Be5+ {[%emt 0:00:04]} 66. Kg2 {[%emt 0:00:26]} Kf4 {[%emt 0:00:05]} 67. Kf2 {[%emt 0:00:16]} g3+ {[%emt 0:00:08]} 68. Kg2 {[%emt 0:00:25]} Ne3+ {[%emt 0:00:16]} 69. Kg1 {[%emt 0:00:27]} Kf3 {[%emt 0:00:07]} 70. Kh1 {[%emt 0:00:07]} g2+ {[%emt 0:00:07]} 71. Kg1 {[%emt 0:00:12]} Bh2+ {[%emt 0:00:17]} 72. Kxh2 {[%emt 0:00:12]} Kf2 {[%emt 0:00:04]} 73. Kh3 {[%emt 0:00:09]} g1=Q {[%emt 0:00:19]} 74. Kh4 {[%emt 0:00:06]} Qg4# {[%emt 0:00:07]} 0-1

[Event "EYCC Girls U10 2021"]
[Site "Tornelo"]
[Date "2021.10.15"]
[Round "2.8"]
[White "Igreja, Mariana"]
[Black "Bubnova, Uliana"]
[Result "0-1"]
[ECO "B35"]
[WhiteElo "1145"]
[BlackElo "1333"]
[Annotator "NA"]
[PlyCount "56"]
[EventDate "2021.10.15"]
[EventType "swiss"]
[EventCountry "NET"]
[SourceTitle "playchess.com"]
[Source "ChessBase"]
[SourceQuality "1"]
[TimeControl "5400+30"]

1. e4 {[%emt 0:00:30]} c5 {[%emt 0:00:44]} 2. Nf3 {[%emt 0:00:29]} Nc6 {[%emt 0:00:09]} 3. d4 {[%emt 0:03:37]} cxd4 {[%emt 0:00:05]} 4. Nxd4 {[%emt 0:00:18]} g6 {[%emt 0:00:05]} 5. Bc4 {[%emt 0:02:49]} Bg7 {[%emt 0:01:05]} 6. Be3 {[%emt 0:00:36]} Nf6 {[%emt 0:00:24]} 7. Nc3 {[%emt 0:00:38]} Qa5 {[%emt 0:00:41]} 8. O-O {[%emt 0:01:16]} O-O {[%emt 0:01:57]} 9. Qd2 {[%emt 0:04:05]} Ng4 {[%emt 0:05:11]} 10. Rad1 {[%emt 0:01:20]} Nxd4 {[%emt 0:01:56]} 11. Bxd4 {[%emt 0:00:34]} Qc7 {[%emt 0:00:16]} 12. g3 {[%emt 0:01:42]} Qxc4 {[%emt 0:00:18]} 13. b3 {[%emt 0:03:29]} Qc6 {[%emt 0:03:06]} 14. Nd5 {[%emt 0:02:42]} Qd6 {[%emt 0:02:11]} 15. Qg5 {[%emt 0:02:31]} Nf6 {[%emt 0:09:57]} 16. Rfe1 {[%emt 0:01:10]} Nxd5 {[%emt 0:03:21]} 17. exd5 {[%emt 0:02:48]} Re8 {[%emt 0:01:10]} 18. Re4 {[%emt 0:02:07]} f6 {[%emt 0:01:37]} 19. Qe3 {[%emt 0:04:22]} b6 {[%emt 0:02:49]} 20. Rh4 {[%emt 0:01:45]} Qxd5 {[%emt 0:01:27]} 21. Re1 {[%emt 0:01:58]} Bb7 {[%emt 0:00:56]} 22. Re4 {[%emt 0:04:07]} Qxe4 {[%emt 0:00:41]} 23. Qxe4 {[%emt 0:03:51]} Bxe4 {[%emt 0:00:35]} 24. Rxe4 {[%emt 0:00:07]} f5 {[%emt 0:00:06]} 25. Rh4 {[%emt 0:00:52]} Bxd4 {[%emt 0:00:09]} 26. Rxd4 {[%emt 0:00:06]} d6 {[%emt 0:00:09]} 27. c4 {[%emt 0:00:34]} Kf7 {[%emt 0:00:08]} 28. Kg2 {[%emt 0:00:24]} Rad8 {[%emt 0:00:11]} 0-1

[Event "EYCC Girls U10 2021"]
[Site "Tornelo"]
[Date "2021.10.15"]
[Round "2.9"]
[White "Stara, Zuzana"]
[Black "Kutateladze, Anastasia"]
[Result "0-1"]
[ECO "B43"]
[WhiteElo "1332"]
[BlackElo "1137"]
[Annotator "NA"]
[PlyCount "88"]
[EventDate "2021.10.15"]
[EventType "swiss"]
[EventCountry "NET"]
[SourceTitle "playchess.com"]
[Source "ChessBase"]
[SourceQuality "1"]
[TimeControl "5400+30"]

1. e4 {[%emt 0:00:30]} c5 {[%emt 0:00:37]} 2. Nf3 {[%emt 0:00:27]} e6 {[%emt 0:00:07]} 3. d4 {[%emt 0:00:33]} cxd4 {[%emt 0:00:11]} 4. Nxd4 {[%emt 0:00:31]} a6 {[%emt 0:00:07]} 5. Nc3 {[%emt 0:01:08]} b5 {[%emt 0:00:10]} 6. a3 {[%emt 0:01:14]} Bb7 {[%emt 0:00:13]} 7. Be3 {[%emt 0:02:36]} Qc7 {[%emt 0:00:44]} 8. Bd3 {[%emt 0:08:43]} Nf6 {[%emt 0:00:41]} 9. h3 {[%emt 0:07:31]} Be7 {[%emt 0:01:36]} 10. Qd2 {[%emt 0:01:17]} d6 {[%emt 0:01:17]} 11. b4 {[%emt 0:20:50]} Nbd7 {[%emt 0:01:33]} 12. Nf3 {[%emt 0:11:51]} Rc8 {[%emt 0:01:17]} 13. Ne2 {[%emt 0:11:53]} Bxe4 {[%emt 0:02:55]} 14. Rc1 {[%emt 0:07:57]} Bxf3 {[%emt 0:02:28]} 15. gxf3 {[%emt 0:00:47]} Ne5 {[%emt 0:00:22]} 16. Nd4 {[%emt 0:04:36]} Nd5 {[%emt 0:04:52]} 17. Rg1 {[%emt 0:05:11]} Bf6 {[%emt 0:02:17]} 18. f4 {[%emt 0:01:59]} Nf3+ {[%emt 0:01:07]} 19. Nxf3 {[%emt 0:01:54]} Bc3 {[%emt 0:00:33]} 20. Rxg7 {[%emt 0:01:55]} Nxe3 {[%emt 0:00:57]} 21. fxe3 {[%emt 0:00:45]} Bxd2+ {[%emt 0:00:11]} 22. Nxd2 {[%emt 0:00:16]} Qc3 {[%emt 0:00:48]} 23. Rg1 {[%emt 0:00:44]} Qxa3 {[%emt 0:02:22]} 24. Ke2 {[%emt 0:00:59]} Qxb4 {[%emt 0:02:23]} 25. Ne4 {[%emt 0:00:21]} Ke7 {[%emt 0:00:28]} 26. Rg7 {[%emt 0:00:43]} Rcg8 {[%emt 0:01:24]} 27. Rcg1 {[%emt 0:00:21]} Rxg7 {[%emt 0:01:16]} 28. Rxg7 {[%emt 0:00:10]} Qb2 {[%emt 0:00:57]} 29. Rg1 {[%emt 0:00:47]} a5 {[%emt 0:01:01]} 30. Rg5 {[%emt 0:00:51]} d5 {[%emt 0:01:55]} 31. Nd2 {[%emt 0:01:02]} a4 {[%emt 0:04:37]} 32. e4 {[%emt 0:00:49]} a3 {[%emt 0:00:37]} 33. exd5 {[%emt 0:02:05]} a2 {[%emt 0:01:02]} 34. d6+ {[%emt 0:01:14]} Kxd6 {[%emt 0:01:05]} 35. Nb3 {[%emt 0:02:12]} Qxb3 {[%emt 0:02:24]} 36. cxb3 {[%emt 0:00:22]} a1=Q {[%emt 0:00:17]} 37. Rxb5 {[%emt 0:00:15]} Qb2+ {[%emt 0:00:15]} 38. Ke3 {[%emt 0:00:10]} Qc1+ {[%emt 0:00:18]} 39. Ke4 {[%emt 0:00:16]} f5+ {[%emt 0:00:14]} 40. Kd4 {[%emt 0:00:25]} Qg1+ {[%emt 0:00:23]} 41. Kc4 {[%emt 0:00:28]} Rc8+ {[%emt 0:00:09]} 42. Kb4 {[%emt 0:00:22]} Qd4+ {[%emt 0:00:11]} 43. Ka3 {[%emt 0:00:18]} Ra8+ {[%emt 0:00:08]} 44. Ra5 {[%emt 0:00:10]} Rxa5# {[%emt 0:00:09]} 0-1